[Event "11th LCC FIDE Open 2019"]
[Site "London"]
[Date "2019.11.30"]
[Round "3.28"]
[White "Stoyanov, Viktor"]
[Black "Nilssen, Ellen Fredericia"]
[Result "1/2-1/2"]
[ECO "A16"]
[WhiteElo "2272"]
[BlackElo "2004"]
[Annotator "RC"]
[PlyCount "122"]
[EventDate "2019.11.29"]
[EventType "swiss"]
[EventCountry "ENG"]
[SourceTitle "playchess.com"]
[Source "ChessBase"]
[SourceQuality "1"]
[TimeControl "40/5400+30:1800+30"]

1. c4 {[%emt 0:05:20]} Nf6 {[%emt 0:01:37]} 2. Nf3 {[%emt 0:00:14]} g6 {[%emt 0:00:07]} 3. Nc3 {[%emt 0:00:11]} d5 {[%emt 0:00:06]} 4. cxd5 {[%emt 0:00:07]} Nxd5 {[%emt 0:00:06]} 5. d3 {[%emt 0:00:05]} Bg7 {[%emt 0:02:17]} 6. Bd2 {[%emt 0:00:10]} O-O {[%emt 0:09:41]} 7. g3 {[%emt 0:01:37]} Nc6 {[%emt 0:04:22]} 8. Bg2 {[%emt 0:02:42]} Nb6 {[%emt 0:00:30]} 9. O-O {[%emt 0:03:03]} a5 {[%emt 0:03:19]} 10. Ne1 {[%emt 0:14:01]} Bd7 {[%emt 0:03:46]} 11. Nc2 {[%emt 0:01:56]} Qc8 {[%emt 0:04:20]} 12. Re1 {[%emt 0:00:53]} Nd4 {[%emt 0:08:11]} 13. Nxd4 {[%emt 0:10:19]} Bxd4 {[%emt 0:00:07]} 14. Qc2 {[%emt 0:02:55]} c6 {[%emt 0:07:34]} 15. Rab1 {[%emt 0:06:00]} Bh3 {[%emt 0:00:46]} 16. Bh1 {[%emt 0:02:26]} h5 {[%emt 0:06:11]} 17. Ne4 {[%emt 0:01:12]} h4 {[%emt 0:06:46]} 18. e3 {[%emt 0:01:35]} Bg7 {[%emt 0:04:30]} 19. Bc3 {[%emt 0:03:08]} hxg3 {[%emt 0:02:56]} 20. hxg3 {[%emt 0:00:15]} Nd5 {[%emt 0:00:14]} 21. Bd2 {[%emt 0:05:46]} Be5 {[%emt 0:04:40]} 22. d4 {[%emt 0:02:19]} Bc7 {[%emt 0:00:57]} 23. Ng5 {[%emt 0:01:56]} Nf6 {[%emt 0:07:56]} 24. Rbc1 {[%emt 0:03:30]} Kg7 {[%emt 0:04:00]} 25. e4 {[%emt 0:02:05]} Bb6 {[%emt 0:02:37]} 26. Qd3 {[%emt 0:04:33]} Qd7 {[%emt 0:02:02]} 27. Be3 {[%emt 0:06:12]} Ng4 {[%emt 0:04:21]} 28. Nxh3 {[%emt 0:05:01]} Nxe3 {[%emt 0:00:05]} 29. Qxe3 {[%emt 0:01:47]} Qxh3 {[%emt 0:00:02]} 30. Qc3 {[%emt 0:00:36]} Kg8 {[%emt 0:02:37]} 31. Red1 {[%emt 0:01:41]} Rfd8 {[%emt 0:01:02]} 32. Rd3 {[%emt 0:00:38]} Rd7 {[%emt 0:01:04]} 33. Bg2 {[%emt 0:00:42]} Qe6 {[%emt 0:00:21]} 34. Re1 {[%emt 0:00:56]} Qxa2 {[%emt 0:00:16]} 35. d5 {[%emt 0:02:34]} cxd5 {[%emt 0:02:34]} 36. exd5 {[%emt 0:00:10]} Qa4 {[%emt 0:00:35]} 37. Re4 {[%emt 0:00:57]} Qa1+ {[%emt 0:01:07]} 38. Re1 {[%emt 0:01:51]} Qa4 {[%emt 0:00:02]} 39. Qe5 {[%emt 0:05:25]} Bc7 {[%emt 0:01:44]} 40. Qe3 {[%emt 0:00:38]} Bd6 {[%emt 0:03:03]} 41. Rc1 {[%emt 0:30:47]} Qg4 {[%emt 0:08:11]} 42. Rd4 {[%emt 0:00:00]} Qf5 {[%emt 0:00:25]} 43. Rdc4 {[%emt 0:00:00]} Rdd8 {[%emt 0:01:39]} 44. Qb6 {[%emt 0:00:00]} Qd7 {[%emt 0:05:13]} 45. Kh2 {[%emt 0:00:00]} Qf5 {[%emt 0:01:53]} 46. Kg1 {[%emt 0:00:00]} Qd7 {[%emt 0:00:05]} 47. R1c3 {[%emt 0:00:00]} Rdc8 {[%emt 0:01:57]} 48. Rxc8+ {[%emt 0:00:00]} Rxc8 {[%emt 0:00:01]} 49. Qxa5 {[%emt 0:00:00]} Rxc3 {[%emt 0:00:06]} 50. bxc3 {[%emt 0:00:00]} Qc7 {[%emt 0:00:16]} 51. Qxc7 {[%emt 0:00:00]} Bxc7 {[%emt 0:00:05]} 52. d6 {[%emt 0:00:00]} exd6 {[%emt 0:00:06]} 53. Bxb7 {[%emt 0:00:00]} g5 {[%emt 0:00:52]} 54. Kg2 {[%emt 0:00:00]} Bb6 {[%emt 0:00:08]} 55. Kf3 {[%emt 0:00:00]} Kg7 {[%emt 0:00:13]} 56. g4 {[%emt 0:00:00]} Bc5 {[%emt 0:00:39]} 57. Ke2 {[%emt 0:00:00]} Bb6 {[%emt 0:00:51]} 58. f3 {[%emt 0:00:00]} f6 {[%emt 0:00:03]} 59. Kd3 {[%emt 0:00:00]} Kf7 {[%emt 0:00:35]} 60. Ke4 {[%emt 0:00:00]} Ke7 {[%emt 0:00:07]} 61. Kd5 {[%emt 0:00:00]} Bg1 {[%emt 0:00:06]} 1/2-1/2

[Event "11th LCC FIDE Open 2019"]
[Site "London"]
[Date "2019.11.30"]
[Round "3.29"]
[White "Wilks, Simon"]
[Black "McClement, Andrew"]
[Result "1/2-1/2"]
[ECO "B52"]
[WhiteElo "2071"]
[BlackElo "2226"]
[Annotator "RC"]
[PlyCount "95"]
[EventDate "2019.11.29"]
[EventType "swiss"]
[EventCountry "ENG"]
[SourceTitle "playchess.com"]
[Source "ChessBase"]
[SourceQuality "1"]
[TimeControl "40/5400+30:1800+30"]

1. e4 {[%emt 0:03:57]} c5 {[%emt 0:00:00]} 2. Nf3 {[%emt 0:00:07]} d6 {[%emt 0:00:00]} 3. Bb5+ {[%emt 0:00:14]} Bd7 {[%emt 0:00:00]} 4. Bxd7+ {[%emt 0:00:05]} Qxd7 {[%emt 0:00:00]} 5. c4 {[%emt 0:00:44]} Nf6 {[%emt 0:01:32]} 6. Nc3 {[%emt 0:00:32]} g6 {[%emt 0:00:06]} 7. d4 {[%emt 0:00:14]} cxd4 {[%emt 0:00:07]} 8. Nxd4 {[%emt 0:00:08]} Bg7 {[%emt 0:00:05]} 9. f3 {[%emt 0:00:22]} O-O {[%emt 0:00:10]} 10. Be3 {[%emt 0:01:22]} Rc8 {[%emt 0:02:09]} 11. b3 {[%emt 0:04:20]} a6 {[%emt 0:05:52]} 12. Rc1 {[%emt 0:07:34]} Nc6 {[%emt 0:01:05]} 13. Nxc6 {[%emt 0:02:00]} Rxc6 {[%emt 0:01:33]} 14. a4 {[%emt 0:06:01]} Qd8 {[%emt 0:01:51]} 15. Qd2 {[%emt 0:04:10]} Nd7 {[%emt 0:02:26]} 16. O-O {[%emt 0:07:27]} Nc5 {[%emt 0:01:58]} 17. Rb1 {[%emt 0:05:08]} Ne6 {[%emt 0:02:14]} 18. Nd5 {[%emt 0:03:14]} Rb8 {[%emt 0:05:08]} 19. a5 {[%emt 0:02:31]} Nc5 {[%emt 0:04:14]} 20. Rfc1 {[%emt 0:11:00]} e6 {[%emt 0:06:08]} 21. Nb6 {[%emt 0:01:29]} Nd7 {[%emt 0:00:37]} 22. Na4 {[%emt 0:02:30]} Qe7 {[%emt 0:08:14]} 23. Rd1 {[%emt 0:03:15]} Rbc8 {[%emt 0:03:44]} 24. Nb6 {[%emt 0:08:31]} Nxb6 {[%emt 0:00:50]} 25. Bxb6 {[%emt 0:00:14]} Qf6 {[%emt 0:04:08]} 26. Qe3 {[%emt 0:07:35]} Qe5 {[%emt 0:02:43]} 27. Rd3 {[%emt 0:01:54]} Bf8 {[%emt 0:07:06]} 28. Rbd1 {[%emt 0:02:38]} Qh5 {[%emt 0:04:33]} 29. Qd2 {[%emt 0:02:40]} Qh4 {[%emt 0:14:36]} 30. g3 {[%emt 0:03:20]} Qh3 {[%emt 0:02:21]} 31. Qe2 {[%emt 0:01:17]} Qh5 {[%emt 0:11:34]} 32. R1d2 {[%emt 0:02:11]} Qe5 {[%emt 0:01:06]} 33. f4 {[%emt 0:00:35]} Qa1+ {[%emt 0:00:40]} 34. Rd1 {[%emt 0:00:26]} Qa3 {[%emt 0:00:12]} 35. Qf3 {[%emt 0:02:39]} Qb2 {[%emt 0:01:50]} 36. f5 {[%emt 0:01:26]} exf5 {[%emt 0:00:57]} 37. exf5 {[%emt 0:00:11]} Re8 {[%emt 0:00:13]} 38. fxg6 {[%emt 0:00:44]} hxg6 {[%emt 0:00:02]} 39. Rf1 {[%emt 0:00:16]} Re7 {[%emt 0:02:25]} 40. Bd4 {[%emt 0:00:20]} Qe2 {[%emt 0:01:19]} 41. Qf6 {[%emt 0:31:16]} Qh5 {[%emt 0:30:08]} 42. Qf4 {[%emt 0:00:00]} Bh6 {[%emt 0:00:00]} 43. Qf6 {[%emt 0:00:00]} Bf8 {[%emt 0:00:00]} 44. Qf4 {[%emt 0:00:00]} Bh6 {[%emt 0:00:00]} 45. Qf6 {[%emt 0:02:49]} Bf8 {[%emt 0:00:00]} 46. Qf4 {[%emt 0:02:14]} Bh6 {[%emt 0:00:03]} 47. Qf6 Bf8 {[%emt 0:00:01]} 48. Rdf3 1/2-1/2

[Event "11th LCC FIDE Open 2019"]
[Site "London"]
[Date "2019.11.30"]
[Round "3.30"]
[White "Akots, Gabor"]
[Black "Ifalore, Michael"]
[Result "1/2-1/2"]
[ECO "C77"]
[WhiteElo "2221"]
[BlackElo "1989"]
[Annotator "RC"]
[PlyCount "48"]
[EventDate "2019.11.29"]
[EventType "swiss"]
[EventCountry "ENG"]
[SourceTitle "playchess.com"]
[Source "ChessBase"]
[SourceQuality "1"]
[TimeControl "40/5400+30:1800+30"]

1. e4 {[%emt 0:00:00]} e5 {[%emt 0:00:00]} 2. Nf3 {[%emt 0:00:00]} Nc6 {[%emt 0:00:00]} 3. Bb5 {[%emt 0:00:00]} a6 {[%emt 0:00:00]} 4. Ba4 {[%emt 0:00:00]} Nf6 {[%emt 0:00:00]} 5. Nc3 {[%emt 0:00:00]} d6 {[%emt 0:01:35]} 6. Bxc6+ {[%emt 0:04:04]} bxc6 {[%emt 0:00:05]} 7. d4 {[%emt 0:00:05]} exd4 {[%emt 0:03:28]} 8. Nxd4 {[%emt 0:00:17]} Bd7 {[%emt 0:00:17]} 9. Qf3 {[%emt 0:00:33]} Qe7 {[%emt 0:08:59]} 10. Bg5 {[%emt 0:24:24]} Qe5 {[%emt 0:04:21]} 11. Bxf6 {[%emt 0:01:06]} Qxf6 {[%emt 0:00:50]} 12. Qxf6 {[%emt 0:00:13]} gxf6 {[%emt 0:00:03]} 13. O-O {[%emt 0:01:31]} O-O-O {[%emt 0:01:38]} 14. Rad1 {[%emt 0:09:51]} Rg8 {[%emt 0:06:36]} 15. f4 {[%emt 0:16:05]} Re8 {[%emt 0:03:47]} 16. f5 {[%emt 0:15:32]} Bh6 {[%emt 0:02:51]} 17. Rf3 {[%emt 0:00:52]} c5 {[%emt 0:02:33]} 18. Nde2 {[%emt 0:00:08]} Bc6 {[%emt 0:00:08]} 19. Ng3 {[%emt 0:00:22]} Rg4 {[%emt 0:00:25]} 20. h3 {[%emt 0:10:22]} Rh4 {[%emt 0:02:10]} 21. Rdf1 {[%emt 0:03:14]} Bd2 {[%emt 0:04:14]} 22. Nb1 {[%emt 0:00:02]} Bg5 {[%emt 0:03:44]} 23. Nc3 {[%emt 0:00:22]} Bd2 {[%emt 0:00:07]} 24. Nb1 {[%emt 0:00:10]} Bg5 {[%emt 0:00:04]} 1/2-1/2

[Event "11th LCC FIDE Open 2019"]
[Site "London"]
[Date "2019.11.30"]
[Round "3.31"]
[White "Dong, Bao Nghia"]
[Black "Modi, Kishan Jagdish"]
[Result "1-0"]
[ECO "D24"]
[WhiteElo "2217"]
[BlackElo "1978"]
[Annotator "RC"]
[PlyCount "121"]
[EventDate "2019.11.29"]
[EventType "swiss"]
[EventCountry "ENG"]
[SourceTitle "playchess.com"]
[Source "ChessBase"]
[SourceQuality "1"]
[TimeControl "40/5400+30:1800+30"]

1. d4 {[%emt 1:42:07]} d5 {[%emt 0:00:08]} 2. c4 {[%emt 0:00:05]} dxc4 {[%emt 0:00:04]} 3. Nc3 {[%emt 0:00:06]} a6 {[%emt 0:00:06]} 4. a4 {[%emt 0:00:04]} Nc6 {[%emt 0:00:05]} 5. e3 {[%emt 0:00:05]} Na5 {[%emt 0:00:33]} 6. Nf3 {[%emt 0:00:11]} Nf6 {[%emt 0:02:09]} 7. Ne5 {[%emt 0:02:35]} e6 {[%emt 0:00:32]} 8. Nxc4 {[%emt 0:00:08]} Nxc4 {[%emt 0:00:09]} 9. Bxc4 {[%emt 0:00:04]} c5 {[%emt 0:01:09]} 10. O-O {[%emt 0:00:43]} Be7 {[%emt 0:00:39]} 11. d5 {[%emt 0:00:21]} exd5 {[%emt 0:00:46]} 12. Nxd5 {[%emt 0:00:04]} Nxd5 {[%emt 0:00:34]} 13. Bxd5 {[%emt 0:00:07]} O-O {[%emt 0:02:36]} 14. Ra3 {[%emt 0:00:40]} Qc7 {[%emt 0:03:39]} 15. Rd3 {[%emt 0:01:03]} Rb8 {[%emt 0:05:59]} 16. e4 {[%emt 0:00:37]} b5 {[%emt 0:05:31]} 17. Qh5 {[%emt 0:01:00]} Bf6 {[%emt 0:03:51]} 18. f4 {[%emt 0:10:45]} Bd4+ {[%emt 0:03:01]} 19. Kh1 {[%emt 0:01:16]} Be6 {[%emt 0:00:11]} 20. f5 {[%emt 0:07:43]} Bxd5 {[%emt 0:00:43]} 21. exd5 {[%emt 0:00:07]} Rb6 {[%emt 0:04:35]} 22. a5 {[%emt 0:02:07]} Rf6 {[%emt 0:03:06]} 23. b4 {[%emt 0:02:26]} h6 {[%emt 0:05:39]} 24. bxc5 {[%emt 0:01:56]} Qxc5 {[%emt 0:00:55]} 25. Qg4 {[%emt 0:00:31]} Be5 {[%emt 0:01:06]} 26. Ba3 {[%emt 0:00:44]} Qc4 {[%emt 0:00:39]} 27. Qxc4 {[%emt 0:01:56]} bxc4 {[%emt 0:00:08]} 28. Re3 {[%emt 0:00:01]} Bd6 {[%emt 0:02:12]} 29. Bb2 {[%emt 0:00:18]} Bc5 {[%emt 0:01:30]} 30. Rg3 {[%emt 0:00:05]} Be7 {[%emt 0:00:27]} 31. Bxf6 {[%emt 0:06:22]} Bxf6 {[%emt 0:00:06]} 32. Rc1 {[%emt 0:00:10]} Rd8 {[%emt 0:00:10]} 33. Rxc4 {[%emt 0:07:06]} Rxd5 {[%emt 0:02:31]} 34. Kg1 {[%emt 0:00:14]} Rxa5 {[%emt 0:00:39]} 35. Rf3 {[%emt 0:00:10]} Rc5 {[%emt 0:03:20]} 36. Rxc5 {[%emt 0:00:18]} Bd4+ {[%emt 0:00:04]} 37. Kf1 {[%emt 0:00:03]} Bxc5 {[%emt 0:00:05]} 38. Rc3 {[%emt 0:00:02]} Bb4 {[%emt 0:00:06]} 39. Rc8+ {[%emt 0:00:11]} Kh7 {[%emt 0:00:05]} 40. Rc7 {[%emt 0:00:31]} f6 {[%emt 0:01:59]} 41. g4 {[%emt 0:00:08]} Bd6 {[%emt 0:00:24]} 42. Rc2 {[%emt 0:00:29]} h5 {[%emt 0:02:54]} 43. h3 {[%emt 0:00:02]} hxg4 {[%emt 0:00:13]} 44. hxg4 {[%emt 0:00:04]} Kh6 {[%emt 0:01:50]} 45. Kg2 {[%emt 0:00:06]} g6 {[%emt 0:05:48]} 46. Kf3 {[%emt 0:01:06]} a5 {[%emt 0:04:21]} 47. Rc6 {[%emt 0:01:09]} Be5 {[%emt 0:00:10]} 48. Ra6 {[%emt 0:00:16]} Bc3 {[%emt 0:00:18]} 49. Ra7 {[%emt 0:00:16]} gxf5 {[%emt 0:03:34]} 50. gxf5 {[%emt 0:00:04]} Kh5 {[%emt 0:02:10]} 51. Ke4 {[%emt 0:00:09]} Kg5 {[%emt 0:00:05]} 52. Rg7+ {[%emt 0:00:07]} Kh5 {[%emt 0:00:47]} 53. Kd5 {[%emt 0:01:25]} Bb2 {[%emt 0:00:24]} 54. Ra7 {[%emt 0:00:44]} Bc3 {[%emt 0:00:34]} 55. Rc7 {[%emt 0:00:25]} Bb2 {[%emt 0:05:02]} 56. Rc2 {[%emt 0:00:13]} Ba1 {[%emt 0:00:23]} 57. Rc5 {[%emt 0:00:14]} Kg5 {[%emt 0:01:03]} 58. Ke6 {[%emt 0:00:07]} a4 {[%emt 0:00:37]} 59. Ra5 {[%emt 0:00:05]} Be5 {[%emt 0:00:20]} 60. Rxa4 {[%emt 0:00:13]} Kh6 {[%emt 0:00:32]} 61. Rg4 {[%emt 0:00:10]} 1-0

[Event "11th LCC FIDE Open 2019"]
[Site "London"]
[Date "2019.11.30"]
[Round "3.32"]
[White "Rocco, Federico"]
[Black "Pellicoro, Nathalie"]
[Result "1-0"]
[ECO "B47"]
[WhiteElo "2207"]
[BlackElo "1967"]
[Annotator "RC"]
[PlyCount "73"]
[EventDate "2019.11.29"]
[EventType "swiss"]
[EventCountry "ENG"]
[SourceTitle "playchess.com"]
[Source "ChessBase"]
[SourceQuality "1"]
[TimeControl "40/5400+30:1800+30"]

1. e4 {[%emt 0:00:00]} c5 {[%emt 0:00:00]} 2. Nf3 {[%emt 0:00:00]} e6 {[%emt 0:00:00]} 3. d4 {[%emt 0:00:00]} cxd4 {[%emt 0:00:00]} 4. Nxd4 {[%emt 0:00:03]} Nc6 {[%emt 0:00:00]} 5. Nc3 {[%emt 0:00:12]} Qc7 {[%emt 0:00:07]} 6. g3 {[%emt 0:00:08]} Nf6 {[%emt 0:00:37]} 7. Bg2 {[%emt 0:05:14]} a6 {[%emt 0:00:29]} 8. O-O {[%emt 0:00:11]} Be7 {[%emt 0:00:18]} 9. Kh1 {[%emt 0:02:21]} O-O {[%emt 0:01:07]} 10. f4 {[%emt 0:01:11]} Rd8 {[%emt 0:17:03]} 11. Be3 {[%emt 0:08:30]} b5 {[%emt 0:04:21]} 12. e5 {[%emt 0:09:12]} Ne8 {[%emt 0:00:58]} 13. Nxc6 {[%emt 0:03:20]} dxc6 {[%emt 0:00:07]} 14. Qf3 {[%emt 0:00:17]} Bb7 {[%emt 0:01:33]} 15. f5 {[%emt 0:02:33]} Qxe5 {[%emt 0:10:18]} 16. fxe6 {[%emt 0:00:11]} f6 {[%emt 0:04:22]} 17. Rae1 {[%emt 0:00:53]} Qc7 {[%emt 0:04:44]} 18. Ne4 {[%emt 0:04:28]} Rd5 {[%emt 0:04:41]} 19. b3 {[%emt 0:05:38]} b4 {[%emt 0:08:37]} 20. c4 {[%emt 0:05:35]} bxc3 {[%emt 0:00:00]} 21. Nxc3 {[%emt 0:00:10]} Rd3 {[%emt 0:00:00]} 22. Na4 {[%emt 0:00:17]} Rad8 {[%emt 0:05:44]} 23. Qe4 {[%emt 0:00:24]} R3d5 {[%emt 0:18:50]} 24. Bb6 {[%emt 0:01:42]} Qd6 {[%emt 0:01:23]} 25. Bxd8 {[%emt 0:02:16]} Qxd8 {[%emt 0:00:05]} 26. Nc3 {[%emt 0:00:41]} Rd4 {[%emt 0:01:31]} 27. Rd1 {[%emt 0:00:34]} Rxd1 {[%emt 0:02:56]} 28. Rxd1 {[%emt 0:00:08]} Nd6 {[%emt 0:00:30]} 29. Qf4 {[%emt 0:00:45]} Qf8 {[%emt 0:02:33]} 30. Ne4 {[%emt 0:00:50]} Nxe4 {[%emt 0:02:33]} 31. Bxe4 {[%emt 0:00:17]} Bc8 {[%emt 0:03:23]} 32. Bxc6 {[%emt 0:00:58]} Bc5 {[%emt 0:01:29]} 33. Bd5 {[%emt 0:01:06]} Kh8 {[%emt 0:00:17]} 34. Qc7 {[%emt 0:01:17]} Bd6 {[%emt 0:02:51]} 35. Qf7 {[%emt 0:01:00]} Qd8 {[%emt 0:01:01]} 36. e7 {[%emt 0:00:09]} Bxe7 {[%emt 0:00:52]} 37. Re1 {[%emt 0:00:10]} 1-0

[Event "11th LCC FIDE Open 2019"]
[Site "London"]
[Date "2019.11.30"]
[Round "3.35"]
[White "Deaconu, Mihai-Ionut"]
[Black "Cordes, Hans-Joerg"]
[Result "1-0"]
[ECO "E32"]
[WhiteElo "1957"]
[BlackElo "2188"]
[Annotator "RC"]
[PlyCount "75"]
[EventDate "2019.11.29"]
[EventType "swiss"]
[EventCountry "ENG"]
[SourceTitle "playchess.com"]
[Source "ChessBase"]
[SourceQuality "1"]
[TimeControl "40/5400+30:1800+30"]

1. d4 {[%emt 0:00:35]} Nf6 {[%emt 0:00:00]} 2. c4 {[%emt 0:00:12]} e6 {[%emt 0:00:00]} 3. Nc3 {[%emt 0:00:09]} Bb4 {[%emt 0:00:16]} 4. Qc2 {[%emt 0:00:16]} O-O {[%emt 0:00:40]} 5. a3 {[%emt 0:01:14]} Bxc3+ {[%emt 0:00:31]} 6. Qxc3 {[%emt 0:00:04]} b6 {[%emt 0:01:17]} 7. Nf3 {[%emt 0:02:39]} Bb7 {[%emt 0:00:16]} 8. Bg5 {[%emt 0:05:24]} d6 {[%emt 0:01:47]} 9. g3 {[%emt 0:08:36]} Nbd7 {[%emt 0:01:21]} 10. Bg2 {[%emt 0:00:17]} h6 {[%emt 0:09:37]} 11. Bc1 {[%emt 0:04:37]} c5 {[%emt 0:09:51]} 12. O-O {[%emt 0:01:33]} Rc8 {[%emt 0:00:30]} 13. b4 {[%emt 0:11:51]} cxd4 {[%emt 0:03:09]} 14. Qxd4 {[%emt 0:00:17]} Bxf3 {[%emt 0:00:49]} 15. exf3 {[%emt 0:05:59]} Ne5 {[%emt 0:00:25]} 16. c5 {[%emt 0:00:18]} bxc5 {[%emt 0:01:37]} 17. bxc5 {[%emt 0:00:03]} Rxc5 {[%emt 0:00:55]} 18. f4 {[%emt 0:04:36]} Nc4 {[%emt 0:01:49]} 19. Rb1 {[%emt 0:05:18]} Qa5 {[%emt 0:10:54]} 20. Rb4 {[%emt 0:03:14]} Rfc8 {[%emt 0:00:00]} 21. f5 {[%emt 0:04:58]} e5 {[%emt 0:13:33]} 22. Qh4 {[%emt 0:01:27]} Qd8 {[%emt 0:00:58]} 23. g4 {[%emt 0:02:01]} d5 {[%emt 0:03:04]} 24. Rb3 {[%emt 0:04:33]} Na5 {[%emt 0:02:13]} 25. Rb1 {[%emt 0:09:53]} Rc4 {[%emt 0:02:30]} 26. f4 {[%emt 0:00:48]} Qc7 {[%emt 0:07:22]} 27. Bb2 {[%emt 0:08:19]} Qb6+ {[%emt 0:13:07]} 28. Kh1 {[%emt 0:00:11]} Rb8 {[%emt 0:00:30]} 29. fxe5 {[%emt 0:01:59]} Nxg4 {[%emt 0:06:26]} 30. Qg3 {[%emt 0:09:32]} Ne3 {[%emt 0:01:24]} 31. Bd4 {[%emt 0:00:26]} Nxf1 {[%emt 0:00:36]} 32. Rxf1 {[%emt 0:01:25]} Rxd4 {[%emt 0:02:59]} 33. f6 {[%emt 0:00:10]} g6 {[%emt 0:00:43]} 34. e6 {[%emt 0:00:03]} Rf8 {[%emt 0:02:45]} 35. e7 {[%emt 0:00:11]} Re8 {[%emt 0:00:19]} 36. Qxg6+ {[%emt 0:00:07]} fxg6 {[%emt 0:00:35]} 37. f7+ {[%emt 0:00:03]} Kh7 {[%emt 0:00:27]} 38. fxe8=Q {[%emt 0:00:23]} 1-0

[Event "11th LCC FIDE Open 2019"]
[Site "London"]
[Date "2019.11.30"]
[Round "3.36"]
[White "Royal, Shreyas"]
[Black "Brozel, Sacha"]
[Result "1-0"]
[ECO "E11"]
[WhiteElo "1941"]
[BlackElo "2188"]
[Annotator "RC"]
[PlyCount "46"]
[EventDate "2019.11.29"]
[EventType "swiss"]
[EventCountry "ENG"]
[SourceTitle "playchess.com"]
[Source "ChessBase"]
[SourceQuality "1"]
[TimeControl "40/5400+30:1800+30"]

1. d4 {[%emt 0:00:00]} Nf6 {[%emt 0:00:00]} 2. c4 {[%emt 0:00:05]} e6 {[%emt 0:00:00]} 3. g3 {[%emt 0:00:19]} Bb4+ {[%emt 0:00:07]} 4. Bd2 {[%emt 0:01:37]} c5 {[%emt 0:00:44]} 5. Bxb4 {[%emt 0:00:51]} cxb4 {[%emt 0:00:05]} 6. Bg2 {[%emt 0:01:17]} O-O {[%emt 0:00:20]} 7. Nf3 {[%emt 0:02:47]} d6 {[%emt 0:00:26]} 8. O-O {[%emt 0:00:34]} a5 {[%emt 0:00:41]} 9. a3 {[%emt 0:01:27]} Na6 {[%emt 0:05:44]} 10. axb4 {[%emt 0:03:11]} Nxb4 {[%emt 0:00:05]} 11. Nc3 {[%emt 0:00:50]} b6 {[%emt 0:02:51]} 12. Rc1 {[%emt 0:10:04]} Bb7 {[%emt 0:00:40]} 13. Nd2 {[%emt 0:06:30]} Bxg2 {[%emt 0:03:14]} 14. Kxg2 {[%emt 0:02:24]} Rc8 {[%emt 0:01:36]} 15. Na4 {[%emt 0:01:55]} Qc7 {[%emt 0:23:33]} 16. Nf3 {[%emt 0:01:59]} Rfd8 {[%emt 0:01:09]} 17. Qb3 {[%emt 0:00:40]} e5 {[%emt 0:03:47]} 18. c5 {[%emt 0:10:45]} e4 {[%emt 0:08:32]} 19. Ng5 {[%emt 0:00:21]} b5 {[%emt 0:02:16]} 20. Nb6 {[%emt 0:03:16]} Rb8 {[%emt 0:00:50]} 21. cxd6 {[%emt 0:03:34]} Qxb6 {[%emt 0:05:20]} 22. Qxf7+ {[%emt 0:00:18]} Kh8 {[%emt 0:01:09]} 23. Rc7 {[%emt 0:00:04]} Ne8 {[%emt 0:06:57]} 1-0

[Event "11th LCC FIDE Open 2019"]
[Site "London"]
[Date "2019.11.30"]
[Round "3.49"]
[White "John, Joshua"]
[Black "Marusenko, Petr"]
[Result "1/2-1/2"]
[ECO "D16"]
[WhiteElo "1680"]
[BlackElo "2085"]
[Annotator "NA RC"]
[PlyCount "107"]
[EventDate "2019.11.29"]
[EventType "swiss"]
[EventCountry "ENG"]
[SourceTitle "playchess.com"]
[Source "ChessBase"]
[SourceQuality "1"]
[TimeControl "40/5400+30:1800+30"]

1. d4 {[%emt 0:56:07]} d5 {[%emt 0:08:19]} 2. Nf3 {[%emt 0:00:13]} Nf6 {[%emt 0:00:07]} 3. c4 {[%emt 0:00:14]} c6 {[%emt 0:00:05]} 4. Nc3 {[%emt 0:00:16]} dxc4 {[%emt 0:00:12]} 5. a4 {[%emt 0:00:37]} e6 {[%emt 0:00:09]} 6. Ne5 {[%emt 0:02:38]} c5 {[%emt 0:01:32]} 7. e3 {[%emt 0:07:20]} cxd4 {[%emt 0:00:12]} 8. exd4 {[%emt 0:00:13]} Nc6 {[%emt 0:00:09]} 9. Nxc6 {[%emt 0:08:41]} bxc6 {[%emt 0:00:23]} 10. Bxc4 {[%emt 0:00:21]} Bd6 {[%emt 0:07:04]} 11. Bg5 {[%emt 0:05:29]} Rb8 {[%emt 0:00:16]} 12. Rb1 {[%emt 0:04:54]} Qc7 {[%emt 0:06:46]} 13. h4 {[%emt 0:10:35]} Nd5 {[%emt 0:06:36]} 14. O-O {[%emt 0:04:25]} Rb4 {[%emt 0:05:18]} 15. Qe2 {[%emt 0:14:31]} O-O {[%emt 0:09:15]} 16. Rfc1 {[%emt 0:04:42]} Nf4 {[%emt 0:04:05]} 17. Bxf4 {[%emt 0:03:37]} Bxf4 {[%emt 0:00:06]} 18. Rc2 {[%emt 0:01:28]} Rd8 {[%emt 0:04:30]} 19. Rd1 {[%emt 0:02:32]} Bd6 {[%emt 0:09:12]} 20. Ne4 {[%emt 0:07:58]} Qe7 {[%emt 0:01:26]} 21. Nxd6 {[%emt 0:00:53]} Qxd6 {[%emt 0:00:34]} 22. b3 {[%emt 0:00:16]} Qf4 {[%emt 0:03:59]} 23. Qd2 {[%emt 0:02:24]} Qxd2 {[%emt 0:01:20]} 24. Rdxd2 {[%emt 0:00:17]} Kf8 {[%emt 0:00:35]} 25. Kf1 {[%emt 0:00:21]} Ke7 {[%emt 0:00:26]} 26. Ke2 {[%emt 0:00:20]} a5 {[%emt 0:03:21]} 27. Ke3 {[%emt 0:00:13]} Kd6 {[%emt 0:00:36]} 28. Rc3 {[%emt 0:00:31]} Kc7 {[%emt 0:01:43]} 29. Be2 {[%emt 0:01:11]} Kb6 {[%emt 0:01:08]} 30. Bf3 {[%emt 0:00:46]} Bb7 {[%emt 0:00:02]} 31. Bd1 {[%emt 0:02:18]} Rd6 {[%emt 0:01:26]} 32. Rc4 {[%emt 0:00:40]} Rxc4 {[%emt 0:03:04]} 33. bxc4 {[%emt 0:00:01]} c5 {[%emt 0:00:12]} 34. Rb2+ {[%emt 0:01:44]} Kc7 {[%emt 0:00:59]} 35. Rb5 {[%emt 0:07:43]} cxd4+ {[%emt 0:00:36]} 36. Kd3 {[%emt 0:00:16]} Bxg2 {[%emt 0:00:44]} 37. Rxa5 {[%emt 0:00:09]} Bf1+ {[%emt 0:00:22]} 38. Be2 {[%emt 0:00:16]} Bxe2+ {[%emt 0:00:08]} 39. Kxe2 {[%emt 0:00:03]} d3+ {[%emt 0:13:28]} 40. Kd2 {[%emt 0:00:22]} Rd4 {[%emt 0:00:10]} 41. Ra7+ {[%emt 0:02:55]} Kd6 {[%emt 0:00:03]} 42. Rxf7 {[%emt 0:00:42]} Rxc4 {[%emt 0:00:06]} 43. Rxg7 {[%emt 0:01:51]} Rxh4 {[%emt 0:00:13]} 44. Kxd3 {[%emt 0:01:34]} h5 {[%emt 0:00:13]} 45. a5 {[%emt 0:02:01]} Ra4 {[%emt 0:00:13]} 46. Rg5 {[%emt 0:00:08]} h4 {[%emt 0:00:05]} 47. Rh5 {[%emt 0:00:31]} h3 {[%emt 0:01:40]} 48. f3 {[%emt 0:00:26]} e5 {[%emt 0:00:19]} 49. Rxh3 {[%emt 0:00:27]} Kd5 {[%emt 0:00:16]} 50. a6 {[%emt 0:01:22]} Rxa6 {[%emt 0:00:08]} 51. Rh4 {[%emt 0:00:15]} Ra1 {[%emt 0:00:38]} 52. Ke3 {[%emt 0:00:53]} Re1+ {[%emt 0:00:22]} 53. Kf2 {[%emt 0:00:32]} Rd1 {[%emt 0:00:05]} 54. Ke3 {[%emt 0:00:35] Ke4+ Kxe4} 1/2-1/2